bitfinex/quotes_SOLUSD_20230102
["timestamp","ask_amount","ask_price","bid_price","bid_amount"]
[1672636078527,30.0,9.9891,9.9733,117.42647551]
[1672636078736,95.2,9.989,9.9733,117.42647551]
[1672636078951,260.8186,9.989,9.9734,24.7623]
[1672636079264,332.57758315,9.989,9.9735,29.69]
[1672636079479,30.0,9.9888,9.9735,54.0964]
[1672636079796,75.2,9.9887,9.9735,54.0964]
[1672636080002,30.0,9.9886,9.9736,24.4064]
[1672636080204,75.2,9.9885,9.9737,28.85]
[1672636080415,30.0,9.9884,9.9737,28.85]
[1672636080635,75.2,9.9883,9.9738,24.4064]
[1672636080849,75.2,9.9883,9.9739,28.47]
[1672636081044,30.0,9.9882,9.974,30.0]
[1672636081257,75.21,9.9881,9.9741,28.84]
[1672636081470,30.0,9.988,9.9741,28.84]
[1672636081683,30.0,9.9878,9.9741,28.84]
[1672636081990,30.0,9.9876,9.9742,24.4064]
[1672636082207,75.21,9.9875,9.9743,32.69]
[1672636082424,30.0,9.9874,9.9743,32.69]
[1672636082743,75.21,9.9873,9.9744,112.38671896]
[1672636082960,30.0,9.9872,9.9746,30.0]
[1672636083151,30.0,9.9872,9.9748,30.0]
[1672636083363,30.0,9.9872,9.9749,35.94]
[1672636083568,30.0,9.987,9.9749,92.80417551]
[1672636083776,30.0,9.987,9.975,30.0]
[1672636084004,30.0,9.9868,9.9751,38.37]
[1672636084214,75.22,9.9867,9.9752,30.0]
[1672636084421,30.0,9.9866,9.9754,30.0]
[1672636084636,30.0,9.9864,9.9755,39.13]
[1672636084836,30.0,9.9864,9.9756,30.0]
[1672636085164,30.0,9.9864,9.9757,41.15]
[1672636085360,30.0,9.9862,9.9751,41.81]
[1672636085574,75.22,9.9861,9.9751,41.81]
[1672636085896,30.0,9.9862,9.9751,41.81]
[1672636086210,30.0,9.9859,9.9751,41.81]
[1672636086430,75.22,9.9858,9.9751,41.81]
[1672636086630,30.0,9.9857,9.9751,41.81]
[1672636086944,30.0,9.9855,9.9752,30.0]
[1672636087152,30.0,9.9855,9.9754,30.0]
[1672636087351,30.0,9.9855,9.9755,43.96]
[1672636087767,139.8318,9.9854,9.9755,43.96]
[1672636088003,30.0,9.9853,9.9751,44.64]
[1672636088529,139.8318,9.9852,9.9752,30.0]
[1672636088727,30.0,9.9851,9.9753,47.04]
[1672636089147,30.0,9.9849,9.9753,47.04]
[1672636089786,30.0,9.9847,9.9753,47.04]
[1672636090229,30.0,9.9847,9.9751,50.06]
[1672636090441,30.0,9.9845,9.9751,50.06]
[1672636091066,30.0,9.9843,9.9751,50.06]
[1672636091475,23.9156,9.9842,9.9752,30.0]
[1672636091692,30.0,9.9841,9.9753,51.89]
[1672636092226,53.9156,9.9841,9.9751,52.75]
[1672636092428,53.9156,9.9841,9.9752,30.0]
[1672636092646,22.7255,9.984,9.9754,56.86417551]
[1672636092836,22.7255,9.984,9.9755,84.48]
[1672636093696,13.1612899,9.9839,9.9755,84.48]
[1672636093891,30.0,9.9838,9.9755,54.48]
[1672636097888,13.15859574,9.9837,9.9755,54.48]
[1672636101241,30.0,9.9836,9.9755,54.48]
[1672636101672,30.0,9.9836,9.9753,52.09]
[1672636101995,43.15724863,9.9836,9.9753,52.09]
[1672636105250,30.0,9.9834,9.9752,23.403]
[1672636105589,30.0,9.9832,9.9752,23.403]
[1672636105794,75.24,9.9831,9.9752,23.403]
[1672636106109,30.0,9.983,9.9752,23.403]
[1672636107142,30.0,9.983,9.9753,51.48]
[1672636107983,30.0,9.983,9.9754,30.0]
[1672636108203,54.2015,9.9834,9.9755,50.14]
[1672636108204,24.2015,9.9834,9.9755,50.14]
[1672636108414,24.2015,9.9834,9.9756,30.0]
[1672636108637,24.2015,9.9834,9.9757,49.9]
[1672636108826,24.2015,9.9834,9.9758,30.0]
[1672636109037,24.2015,9.9834,9.9759,50.29]
[1672636109897,43.15320711,9.9833,9.9759,50.29]
[1672636110090,13.15320711,9.9833,9.9758,30.0]
[1672636110301,13.15320711,9.9833,9.9759,51.22]
[1672636110517,13.15320711,9.9833,9.976,30.0]
[1672636110841,13.15320711,9.9833,9.9761,50.71]
[1672636111470,30.0,9.9832,9.9755,49.79]
[1672636112830,30.0,9.9832,9.9756,30.0]
[1672636113045,30.0,9.9832,9.9757,48.13]
[1672636113878,13.15051262,9.9831,9.9757,48.13]
[1672636114504,13.15051262,9.9831,9.9755,47.48]
[1672636118614,13.15051262,9.9831,9.9756,30.0]
[1672636118825,13.15051262,9.9831,9.9757,34.44]
[1672636120103,13.15051262,9.9831,9.9755,32.53]
[1672636120847,30.0,9.983,9.9755,32.53]
[1672636121772,13.14781803,9.9829,9.9755,32.53]
[1672636121984,13.14781803,9.9829,9.9756,30.0]
[1672636122192,13.14781803,9.9829,9.9757,32.25]
[1672636122935,24.2015,9.9834,9.9757,32.25]
[1672636123147,24.2015,9.9834,9.9758,30.0]
[1672636123357,24.2015,9.9834,9.9759,31.63]
[1672636123986,24.2015,9.9834,9.976,30.0]
[1672636124193,24.2015,9.9834,9.9761,34.73]
[1672636124410,24.2015,9.9834,9.9762,30.0]
[1672636124618,24.2015,9.9834,9.9764,30.0]
[1672636124830,13.15320711,9.9833,9.9765,36.26]
[1672636125037,13.15320711,9.9833,9.9766,30.0]
[1672636125248,13.15320711,9.9833,9.9768,30.0]
[1672636125461,13.15320711,9.9833,9.977,30.0]
[1672636125661,13.15320711,9.9833,9.9771,38.02]
[1672636125879,13.15320711,9.9833,9.9772,30.0]
[1672636126089,13.15320711,9.9833,9.9774,30.0]
[1672636126290,13.15320711,9.9833,9.9775,40.53]
[1672636126517,13.15320711,9.9833,9.9776,30.0]
[1672636126719,13.15320711,9.9833,9.9778,30.0]
[1672636126918,13.15320711,9.9833,9.9779,41.61]
[1672636127151,13.15320711,9.9833,9.978,30.0]
[1672636127349,13.15320711,9.9833,9.9781,42.77]
[1672636128610,13.15320711,9.9833,9.9782,30.0]
[1672636128822,13.15320711,9.9833,9.9783,45.75]
[1672636130079,13.15320711,9.9833,9.977,30.0]
[1672636130289,13.15320711,9.9833,9.9772,30.0]
[1672636130504,13.15320711,9.9833,9.9773,47.72]
[1672636131043,13.15320711,9.9833,9.9771,48.8]
[1672636131865,30.0,9.9832,9.9771,48.8]
[1672636132185,13.15320711,9.9833,9.9757,49.64]
[1672636132515,13.15320711,9.9833,9.9758,30.0]
[1672636132710,13.15051262,9.9831,9.976,30.0]
[1672636132920,13.15051262,9.9831,9.9761,50.61]
[1672636133125,13.15051262,9.9831,9.9762,30.0]
[1672636133334,13.15051262,9.9831,9.9764,30.0]
[1672636133671,13.15051262,9.9831,9.9766,30.0]
[1672636133873,13.15051262,9.9831,9.9767,50.68]
[1672636134068,13.15051262,9.9831,9.9768,30.0]
[1672636134286,13.15051262,9.9831,9.9769,50.71]
[1672636135649,13.15051262,9.9831,9.9765,49.16]
[1672636136614,13.15051262,9.9831,9.9756,30.0]
[1672636136825,13.15051262,9.9831,9.9757,47.87]
[1672636137023,13.15051262,9.9831,9.9758,30.0]
[1672636137346,13.15051262,9.9831,9.976,30.0]
[1672636137555,13.15051262,9.9831,9.9761,47.85]
[1672636138706,30.0,9.983,9.9761,47.85]
[1672636138901,30.0,9.983,9.9757,47.35]
[1672636139439,13.15051262,9.9831,9.9758,30.0]
[1672636139770,13.14781803,9.9829,9.976,30.0]
[1672636140081,13.14781803,9.9829,9.9762,30.0]
[1672636140293,13.14781803,9.9829,9.9763,49.2]
[1672636140604,13.14781803,9.9829,9.976,30.0]
[1672636140795,24.2015,9.9834,9.9761,49.4]
[1672636141847,30.0,9.9832,9.9759,48.88]
[1672636142504,13.15320711,9.9833,9.976,30.0]
[1672636142824,13.15320711,9.9833,9.9762,30.0]
[1672636143020,13.15320711,9.9833,9.9763,49.77]
[1672636143231,13.15320711,9.9833,9.9764,30.0]
[1672636143444,13.15320711,9.9833,9.9766,30.0]
[1672636143672,13.15320711,9.9833,9.9767,52.23]
[1672636143977,13.15320711,9.9833,9.9768,30.0]
[1672636144185,13.15320711,9.9833,9.9769,53.32]
[1672636144376,13.15320711,9.9833,9.977,30.0]
[1672636144589,13.15320711,9.9833,9.9772,30.0]
[1672636144799,13.15320711,9.9833,9.9774,30.0]
[1672636145015,13.15320711,9.9833,9.9775,55.28]
[1672636145436,13.15320711,9.9833,9.9774,30.0]
[1672636145657,13.15320711,9.9833,9.9775,57.17]
[1672636145976,13.15320711,9.9833,9.9776,30.0]
[1672636146172,13.15320711,9.9833,9.9778,30.0]
[1672636146384,13.15320711,9.9833,9.978,30.0]
[1672636146597,13.15320711,9.9833,9.9781,58.94]
[1672636147851,13.15320711,9.9833,9.9779,60.23]
[1672636149541,13.15320711,9.9833,9.9777,61.98]
[1672636149751,13.15320711,9.9833,9.9769,62.32]
[1672636152049,13.15320711,9.9833,9.977,30.0]
[1672636152263,13.15320711,9.9833,9.9771,64.54]
[1672636152998,13.15320711,9.9833,9.9772,30.0]
[1672636153208,13.15320711,9.9833,9.9774,30.0]
[1672636153432,13.15320711,9.9833,9.9775,66.08]
[1672636153849,13.15320711,9.9833,9.9773,67.04]
[1672636154502,13.15320711,9.9833,9.9767,67.23]
[1672636154908,30.0,9.9832,9.9761,67.52]
[1672636155743,13.15051262,9.9831,9.9762,30.0]
[1672636155962,13.15051262,9.9831,9.9763,67.8]
[1672636156813,13.15051262,9.9831,9.9761,71.33]
[1672636157331,13.15051262,9.9831,9.9759,71.63]
[1672636157545,13.15051262,9.9831,9.976,30.0]
[1672636157757,13.15051262,9.9831,9.9761,72.02]
[1672636157972,13.15051262,9.9831,9.9762,30.0]
[1672636158164,13.15051262,9.9831,9.9764,30.0]
[1672636158369,13.15051262,9.9831,9.9765,73.62]
[1672636158584,13.15051262,9.9831,9.9766,30.0]
[1672636158800,13.15051262,9.9831,9.9768,30.0]
[1672636159015,13.15051262,9.9831,9.977,30.0]
[1672636159206,13.15051262,9.9831,9.9771,74.85]
[1672636159847,13.15051262,9.9831,9.9769,75.29]
[1672636161016,13.15051262,9.9831,9.9762,30.0]
[1672636161226,13.15051262,9.9831,9.9764,30.0]
[1672636161416,13.15051262,9.9831,9.9765,75.29]
[1672636161636,13.15051262,9.9831,9.9764,30.0]
[1672636161839,13.15051262,9.9831,9.9765,75.29]
[1672636162371,13.15051262,9.9831,9.9766,30.0]
[1672636162586,13.15051262,9.9831,9.9767,75.29]
[1672636163210,13.15051262,9.9831,9.9765,75.29]
[1672636163423,13.15051262,9.9831,9.9763,75.29]
[1672636163637,13.15051262,9.9831,9.9764,30.0]
[1672636163851,13.15051262,9.9831,9.9766,30.0]
[1672636164166,13.15051262,9.9831,9.9767,75.29]
[1672636165541,13.15051262,9.9831,9.9768,30.0]
[1672636165759,13.15051262,9.9831,9.9769,75.29]
[1672636165939,13.15051262,9.9831,9.977,30.0]
[1672636166153,13.15051262,9.9831,9.9771,75.29]
[1672636166785,13.15051262,9.9831,9.9769,75.29]
[1672636166995,13.15051262,9.9831,9.9763,75.29]
[1672636167623,13.15051262,9.9831,9.9761,75.3]
[1672636168267,30.0,9.983,9.9757,75.3]
[1672636168459,30.0,9.983,9.9755,75.3]
[1672636168880,43.14377162,9.983,9.9755,75.3]
[1672636169636,43.14377162,9.983,9.9756,30.0]
[1672636169822,13.14377162,9.983,9.9758,30.0]
[1672636170034,13.14377162,9.983,9.9759,75.3]
[1672636170475,13.14377162,9.983,9.976,30.0]
[1672636170684,13.14377162,9.983,9.9762,30.0]
[1672636171002,13.14377162,9.983,9.9764,30.0]
[1672636171320,13.14377162,9.983,9.9766,30.0]
[1672636171508,13.14377162,9.983,9.9767,75.29]
[1672636171720,24.2015,9.9834,9.9768,30.0]
[1672636171930,24.2015,9.9834,9.9769,75.29]
[1672636172139,75.08997863,9.9897,9.9769,75.29]
[1672636172140,75.08997863,9.9897,9.9769,216.91511718]
[1672636172360,30.0,9.9906,9.98,5.68]
[1672636172673,30.0,9.9906,9.9801,242.8687]
[1672636172891,13.14781339,9.9833,9.9802,20.0]
[1672636173080,13.14781339,9.9833,9.9803,75.26]
[1672636173291,13.14781339,9.9833,9.9804,20.0]
[1672636173502,13.14781339,9.9833,9.9805,75.26]
[1672636173717,13.14781339,9.9833,9.9806,20.0]
[1672636173929,30.0,9.9902,9.9807,75.26]
[1672636174139,30.0,9.9902,9.9808,20.0]
[1672636174348,30.0,9.9902,9.9809,75.26]
[1672636174764,30.0,9.9902,9.981,44.818]
[1672636174992,30.0,9.99,9.9811,75.26]
[1672636175183,30.0,9.99,9.9812,20.0]
[1672636175395,30.0,9.99,9.9813,75.26]
[1672636175722,30.0,9.99,9.9814,20.0]
[1672636175951,30.0,9.99,9.9815,75.25]
[1672636176150,30.0,9.99,9.9816,20.0]
[1672636176364,30.0,9.99,9.9817,75.25]
[1672636176573,30.0,9.99,9.9818,20.0]
[1672636176897,30.0,9.99,9.9819,75.25]
[1672636177228,30.0,9.99,9.9819,98.6222]
[1672636177401,30.0,9.99,9.982,20.0]
[1672636177611,30.0,9.99,9.9821,75.25]
[1672636177831,13.23667075,9.9899,9.9822,20.0]
[1672636178042,13.23667075,9.9899,9.9823,75.25]
[1672636178254,13.23667075,9.9899,9.9824,20.0]
[1672636178468,13.23667075,9.9899,9.9825,75.25]
[1672636178670,13.23667075,9.9899,9.9826,20.0]
[1672636179301,13.23667075,9.9899,9.9824,20.0]
[1672636179500,13.23667075,9.9899,9.9825,75.25]
[1672636179714,13.23667075,9.9899,9.9826,20.0]
[1672636180342,13.23667075,9.9899,9.9824,20.0]
[1672636180551,13.23667075,9.9899,9.9825,75.25]
[1672636180758,13.23667075,9.9899,9.9826,20.0]
[1672636181390,13.23667075,9.9899,9.9825,20.0]
[1672636181604,13.23667075,9.9899,9.9826,75.25]
[1672636181834,13.23667075,9.9899,9.9827,20.0]
[1672636182446,13.23667075,9.9899,9.9825,20.0]
[1672636182861,13.23667075,9.9899,9.9824,20.0]
[1672636183073,30.0,9.9898,9.9824,20.0]
[1672636183913,13.23397983,9.9897,9.9824,20.0]
[1672636184967,30.0,9.9896,9.9824,20.0]
[1672636186242,30.0,9.9894,9.9824,20.0]
[1672636190759,13.22859766,9.9893,9.9824,20.0]
[1672636190996,30.0,9.9892,9.9824,20.0]
[1672636194050,30.0,9.989,9.9824,20.0]
[1672636194241,75.2,9.9889,9.9824,20.0]
[1672636194451,30.0,9.989,9.9824,20.0]
[1672636194771,13.22321506,9.9889,9.9824,20.0]
[1672636194989,30.0,9.9888,9.9824,20.0]
[1672636198879,13.2205236,9.9887,9.9824,20.0]
[1672636201196,13.2205236,9.9887,9.9825,60.09]
[1672636201392,13.2205236,9.9887,9.9826,20.0]
[1672636201607,13.2205236,9.9887,9.9827,59.26]
[1672636201816,13.2205236,9.9887,9.9828,19.93824564]
[1672636202252,13.2205236,9.9887,9.9824,58.41]
[1672636203311,13.2205236,9.9887,9.9825,20.0]
[1672636203518,13.2205236,9.9887,9.9826,58.29]
[1672636203726,13.2205236,9.9887,9.9827,20.0]
[1672636204352,13.2205236,9.9887,9.9825,20.0]
[1672636204567,13.2205236,9.9887,9.9826,56.91]
[1672636204772,13.2205236,9.9887,9.9827,20.0]
[1672636205416,13.2205236,9.9887,9.9825,20.0]
[1672636205619,13.2205236,9.9887,9.9826,56.36]
[1672636205820,13.13533396,9.9887,9.9827,20.0]
[1672636206257,13.13533396,9.9887,9.9825,20.0]
[1672636206464,13.13533396,9.9887,9.9826,55.93]
[1672636206680,13.13533396,9.9887,9.9827,20.0]
[1672636206981,13.13533396,9.9887,9.9823,23.8416]
[1672636207195,13.13533396,9.9887,7.088,1.0]
[1672636207196,105.2,9.9886,9.9783,55.08]
[1672636207408,30.0,9.9885,9.971,30.0]
[1672636207604,30.0,9.9885,9.9711,73.18]
[1672636207605,75.2,9.9884,9.9711,73.18]
[1672636207815,30.0,9.9883,9.9712,30.0]
[1672636208021,30.0,9.9881,9.9714,30.0]
[1672636208236,75.21,9.988,9.9715,53.89]
[1672636208440,30.0,9.9879,9.9716,30.0]
[1672636208672,30.0,9.9877,9.9718,30.0]
[1672636208866,75.21,9.9876,9.972,30.0]
[1672636209082,30.0,9.9875,9.9721,54.57]
[1672636209296,30.0,9.9873,9.9721,54.57]
[1672636209497,75.21,9.9872,9.9723,30.0]
[1672636209701,30.0,9.9871,9.9724,74.89]
[1672636209918,30.0,9.9869,9.9724,74.89]
[1672636210126,75.22,9.9868,9.9726,30.0]
[1672636210336,30.0,9.9867,9.9727,73.04]
[1672636210548,75.22,9.9866,9.9727,73.04]
[1672636210871,30.0,9.9865,9.9728,157.7549]
[1672636211089,30.0,9.9863,9.9729,73.21]
[1672636211289,75.22,9.9862,9.9729,120.3585]
[1672636211497,30.0,9.9861,9.973,30.0]
[1672636211706,30.0,9.9861,9.9731,48.75]
[1672636211707,30.0,9.9859,9.9731,48.75]
[1672636212039,30.0,9.9859,9.973,95.8985]
[1672636212040,30.0,9.9857,9.973,95.8985]
[1672636212239,30.0,9.9855,9.973,95.8985]
[1672636212560,30.0,9.9853,9.9731,47.1485]
[1672636212765,75.23,9.9852,9.9732,46.6]
[1672636212974,30.0,9.9851,9.9732,93.7485]
[1672636213197,30.0,9.9849,9.9732,93.7485]
[1672636213408,30.0,9.9847,9.9732,93.7485]
[1672636213626,75.23,9.9846,9.9733,48.2665]
[1672636213827,30.0,9.9845,9.9734,43.7]
[1672636214469,30.0,9.9843,9.9735,48.2665]
[1672636214679,30.0,9.9843,9.9736,44.8]
[1672636215617,30.0,9.9841,9.9737,48.2665]
[1672636215830,30.0,9.9841,9.9738,44.76]
[1672636216352,30.0,9.9839,9.9739,24.4515]
[1672636216673,30.0,9.9839,9.974,44.75]
[1672636216885,30.0,9.9837,9.974,67.6328]
[1672636217500,30.0,9.9835,9.9741,22.8828]
[1672636217816,30.0,9.9835,9.9742,45.58]
[1672636218033,30.0,9.9833,9.9742,68.4628]
[1672636218664,30.0,9.9831,9.9743,22.8828]
[1672636218876,30.0,9.9831,9.9744,45.81]
[1672636219492,54.8176,9.9831,9.9745,22.8828]
[1672636219707,54.8176,9.9831,9.9746,47.66]
[1672636219919,13.13667249,9.983,9.9746,47.66]
[1672636220252,13.13667249,9.983,9.9747,23.2042]
[1672636220459,13.13667249,9.983,9.9748,49.92]
[1672636220655,13.13667249,9.983,9.9748,73.1242]
[1672636221812,13.13667249,9.983,9.9749,23.2042]
[1672636222028,13.13667249,9.983,9.975,48.52]
[1672636222775,13.13667249,9.983,9.9751,23.2042]
[1672636223090,13.13667249,9.983,9.9752,48.81]
[1672636225406,13.13667249,9.983,9.9753,30.0]
[1672636225593,13.13667249,9.983,9.9754,45.81]
[1672636225806,13.13667249,9.983,9.9755,30.0]
[1672636226021,13.13667249,9.983,9.9756,46.07]
[1672636226862,13.13667249,9.983,9.9754,45.95]
[1672636227503,13.13667249,9.983,9.9754,30.0]
[1672636227694,13.13667249,9.983,9.9755,44.5]
[1672636228119,13.13667249,9.983,9.9756,30.0]
[1672636228339,13.13667249,9.983,9.9757,44.43]
[1672636229488,30.0,9.9829,9.9755,44.56]
[1672636229818,43.13532518,9.9829,9.9754,43.53]
[1672636230015,75.25,9.9828,9.9753,24.1703]
[1672636230226,30.0,9.9827,9.9753,24.1703]
[1672636230750,43.13263048,9.9827,9.9753,24.1703]
[1672636230950,30.0,9.9825,9.9753,24.1703]
[1672636231160,75.25,9.9824,9.9753,24.1703]
[1672636231374,30.0,9.9823,9.9753,24.1703]
[1672636231590,30.0,9.9821,9.9753,24.1703]
[1672636232010,30.0,9.9819,9.9753,24.1703]
[1672636232235,30.0,9.9817,9.9753,24.1703]
[1672636232555,75.25,9.9816,9.9753,24.1703]
[1672636232871,30.0,9.9815,9.9753,24.1703]
[1672636233080,75.26,9.9814,9.9753,24.1703]
[1672636233284,30.0,9.9813,9.9753,24.1703]
[1672636234748,16.62498145,9.9812,9.9753,24.1703]
[1672636234964,30.0,9.9811,9.9753,24.1703]
[1672636238849,16.62235622,9.981,9.9753,24.1703]
[1672636239058,30.0,9.9809,9.9753,24.1703]
[1672636240720,30.0,9.9809,9.9709,27.28]
[1672636240721,95.26,9.9808,9.9709,27.28]
[1672636240944,5.67,9.98,9.9709,27.28]
[1672636241144,5.67,9.98,9.9622,30.0]
[1672636241145,30.0,9.9798,9.9622,30.0]
[1672636241361,95.27,9.9797,9.9623,78.70996565]
[1672636241572,30.0,9.9796,9.9624,62.40964031]
[1672636241781,30.0,9.9794,9.9626,30.0]
[1672636242003,30.0,9.9792,9.9628,30.0]
[1672636242321,30.0,9.9792,9.9631,30.0]
[1672636242322,30.0,9.979,9.9631,30.0]
[1672636242637,30.0,9.9788,9.9634,30.0]
[1672636242850,75.28,9.9787,9.9635,67.27606217]
[1672636243045,30.0,9.9786,9.9636,62.40573692]
[1672636243249,30.0,9.9786,9.9638,30.0]
[1672636243470,30.0,9.9786,9.9639,70.98476121]
[1672636243686,30.0,9.9784,9.964,62.404436]
[1672636243877,30.0,9.9784,9.9642,30.0]
[1672636244087,30.0,9.9784,9.9644,30.0]
[1672636244310,30.0,9.9782,9.9645,40.98]
[1672636244509,30.0,9.9782,9.9646,30.0]
[1672636244716,30.0,9.9782,9.9648,30.0]
[1672636244932,30.0,9.978,9.9649,42.82]
[1672636245151,30.0,9.978,9.965,30.0]
[1672636245473,30.0,9.978,9.9652,30.0]
[1672636245679,30.0,9.9778,9.9654,30.0]
[1672636245899,30.0,9.9778,9.9656,30.0]
[1672636246092,30.0,9.9778,9.9658,30.0]
[1672636246425,30.0,9.9778,9.9659,49.99]
[1672636246426,30.0,9.9776,9.9659,49.99]
[1672636246828,30.0,9.9774,9.966,24.9544]
[1672636247168,30.0,9.9774,9.9662,30.0]
[1672636247357,30.0,9.9772,9.9663,52.17]
[1672636248197,30.0,9.977,9.9663,52.17]
[1672636248407,30.0,9.977,9.9664,30.0]
[1672636248625,143.0966,9.9769,9.9665,54.04]
[1672636248821,30.0,9.9768,9.9666,30.0]
[1672636249148,30.0,9.9768,9.9668,30.0]
[1672636249351,132.3413,9.9767,9.967,30.0]
[1672636249546,132.3413,9.9767,9.9671,58.33]
[1672636249758,132.3413,9.9767,9.9672,30.0]
[1672636249977,53.8746,9.9766,9.9674,30.0]
[1672636250193,53.8746,9.9766,9.9675,61.53]
[1672636250407,53.8746,9.9766,9.9676,30.0]
[1672636250617,23.8746,9.9765,9.9678,30.0]
[1672636250949,40.43786071,9.9765,9.968,30.0]
[1672636251247,40.43786071,9.9765,9.9682,30.0]
[1672636251441,30.0,9.9764,9.9683,67.01]
[1672636252291,30.0,9.9764,9.9684,30.0]
[1672636252488,30.0,9.9764,9.9685,66.65]
[1672636253643,30.0,9.9764,9.9686,30.0]
[1672636253862,30.0,9.9764,9.9687,67.19]
[1672636254279,16.56326071,9.9765,9.97,5.68]
[1672636254495,16.56326071,9.9765,9.9702,30.0]
[1672636254742,16.56326071,9.9765,9.9704,30.0]
[1672636254913,46.560633,9.9865,9.9705,93.33]
[1672636255120,30.0,9.9863,9.9706,30.0]
[1672636255331,30.0,9.9861,9.9708,30.0]
[1672636255556,75.22,9.986,9.971,30.0]
[1672636255874,30.0,9.9859,9.9711,95.14]
[1672636256095,30.0,9.9857,9.9712,30.0]
[1672636256407,30.0,9.9855,9.9714,30.0]
[1672636256594,30.0,9.9855,9.9716,30.0]
[1672636256595,30.0,9.9853,9.9716,30.0]
[1672636256805,75.23,9.9852,9.9718,30.0]
[1672636257014,30.0,9.9851,9.972,30.0]
[1672636257225,30.0,9.9849,9.9721,72.4]
[1672636257434,30.0,9.9847,9.9722,30.0]
[1672636257657,75.23,9.9846,9.9724,30.0]
[1672636257872,30.0,9.9845,9.9726,30.0]
[1672636258087,30.0,9.9843,9.9727,91.06]
[1672636258306,75.23,9.9842,9.9728,30.0]
[1672636258515,30.0,9.9841,9.973,30.0]
[1672636258728,30.0,9.9839,9.9732,30.0]
[1672636258931,30.0,9.9837,9.9733,69.65]
[1672636259136,75.24,9.9836,9.9734,30.0]
[1672636259346,30.0,9.9835,9.9735,68.12]
[1672636259550,30.0,9.9833,9.9735,68.12]
[1672636259774,75.24,9.9832,9.9735,68.12]
[1672636259992,30.0,9.9831,9.9736,23.7591]
[1672636260303,30.0,9.9829,9.9737,66.61]
[1672636260522,30.0,9.9827,9.9737,90.3691]
[1672636260719,75.25,9.9826,9.9737,23.7591]
[1672636260918,30.0,9.9825,9.9737,23.7591]
[1672636261128,30.0,9.9823,9.9738,64.74]
[1672636261337,30.0,9.9821,9.9737,23.7591]
[1672636261560,75.25,9.982,9.9737,23.7591]
[1672636261771,30.0,9.9819,9.9738,23.7591]
[1672636261967,30.0,9.9817,9.9738,23.7591]
[1672636263127,16.6302316,9.9816,9.9738,23.7591]
[1672636265224,30.0,9.9815,9.9738,23.7591]
[1672636266810,16.62760658,9.9814,9.9738,23.7591]
[1672636271540,30.0,9.9813,9.9738,23.7591]
[1672636271991,46.62629403,9.9813,9.9738,23.7591]
[1672636272479,30.0,9.9811,9.9738,23.7591]
[1672636274892,16.62235622,9.981,9.9738,23.7591]
[1672636276792,30.0,9.9809,9.9738,23.7591]
[1672636278894,16.61973089,9.9808,9.9738,23.7591]
[1672636279523,30.0,9.9807,9.9738,23.7591]
[1672636283020,16.61710545,9.9806,9.9738,23.7591]
[1672636285534,30.0,9.9805,9.9738,23.7591]
[1672636286912,16.6144799,9.9804,9.9738,23.7591]
[1672636291835,16.6144799,9.9804,9.9739,42.26]
[1672636293851,16.6144799,9.9804,9.9738,23.7591]
[1672636293852,30.0,9.9803,9.9738,23.7591]
[1672636294999,30.0,9.9801,9.9738,23.7591]
[1672636295841,16.60922849,9.98,9.9738,23.7591]
[1672636296054,30.0,9.9799,9.9738,23.7591]
[1672636299948,30.0,9.9797,9.9738,23.7591]
[1672636303951,16.60397666,9.9796,9.9738,23.7591]
[1672636305520,16.60397666,9.9796,9.9739,34.12]
[1672636311807,5.72,9.98,9.9739,34.12]
[1672636313078,16.60791557,9.9799,9.9739,34.12]
[1672636315608,30.0,9.9798,9.9738,23.7591]
[1672636316028,46.60660263,9.9798,9.9738,23.7591]
[1672636320330,16.60660263,9.9798,9.9738,23.7591]
[1672636320750,30.0,9.9797,9.9738,23.7591]
[1672636322011,16.60397666,9.9796,9.9738,23.7591]
[1672636334951,30.0,9.9795,9.9738,23.7591]
[1672636335921,16.60135059,9.9794,9.9738,23.7591]
[1672636338949,30.0,9.9793,9.9738,23.7591]
[1672636340116,30.0,9.9791,9.9738,23.7591]
[1672636343050,16.59872441,9.9792,9.9738,23.7591]
[1672636344000,75.26,9.9808,9.9738,23.7591]
[1672636344969,16.61185425,9.9802,9.9738,23.7591]
[1672636346217,30.0,9.9799,9.9738,23.7591]
[1672636346626,16.61185425,9.9802,9.9738,23.7591]
[1672636347163,16.61185425,9.9802,9.9739,30.0]